fUST/lending_fUST_20241220
["ID","MTS","AMOUNT","RATE_DAILY","PERIOD"]
[346104555,1734706246717,-500.0,0.00023287,6]
[346104557,1734706246727,-278.03,0.00023287,6]
[346104559,1734706246738,-1735.48,0.00023287,4]
[346104561,1734706246747,-221.44,0.00023287,6]
[346104563,1734706246758,-1309.3,0.00023287,6]
[346104565,1734706246768,-500.0,0.00023287,6]
[346104568,1734706246782,-500.0,0.00023287,6]
[346104570,1734706246793,-847.08,0.00023287,6]
[346104572,1734706246803,-6237.22,0.00023287,6]
[346104574,1734706246812,-603.86,0.00023287,6]
[346104576,1734706246822,-503.51,0.00023287,6]
[346104577,1734706246831,-500.0,0.00023287,6]
[346104579,1734706246841,-642.43,0.00023287,6]
[346104582,1734706246850,-500.0,0.00023287,6]
[346104584,1734706246860,-500.0,0.00023287,6]
[346104586,1734706246869,-280.91319224,0.00023433,2]
[346104588,1734706246878,-432.0,0.000235,10]
[346104590,1734706246888,-472.47,0.0002352,2]
[346104592,1734706246897,-500.0,0.00023561,6]
[346104594,1734706246907,-500.0,0.00023561,6]
[346104596,1734706246916,-500.0,0.00023561,6]
[346104598,1734706246926,-652.78,0.00023561,6]
[346104600,1734706246935,-500.0,0.00023561,6]
[346104602,1734706246945,-500.0,0.00023561,6]
[346104604,1734706246954,-500.0,0.00023561,6]
[346104606,1734706246964,-500.0,0.00023561,6]
[346104608,1734706246974,-226.48,0.00023561,6]
[346104610,1734706246983,-423.58942756,0.00023561,6]
[346104612,1734706246992,-500.0,0.00023561,6]
[346104614,1734706247002,-1089.39,0.00023561,6]
[346104616,1734706247011,-1535.49,0.00023561,6]
[346104618,1734706247021,-1710.39,0.00023561,6]
[346104620,1734706247031,-1257.81,0.00023561,6]
[346104622,1734706247040,-500.0,0.00023561,6]
[346104624,1734706247050,-500.0,0.00023561,6]
[346104626,1734706247060,-500.0,0.00023561,2]
[346104628,1734706247070,-500.0,0.00023561,6]
[346104630,1734706247080,-1309.3,0.00023561,6]
[346104632,1734706247089,-500.0,0.00023561,6]
[346104634,1734706247099,-500.0,0.00023561,6]
[346104636,1734706247109,-847.08,0.00023561,6]
[346104638,1734706247119,-6237.22,0.00023561,6]
[346104640,1734706247129,-603.86,0.00023561,6]
[346104642,1734706247139,-503.51,0.00023561,6]
[346104644,1734706247148,-500.0,0.00023561,6]
[346104646,1734706247158,-642.43,0.00023561,6]
[346104648,1734706247168,-500.0,0.00023561,6]
[346104650,1734706247178,-500.0,0.00023561,6]
[346104653,1734706247188,-153.0,0.0002358,2]
[346104655,1734706247198,-153.0,0.0002358,2]
[346104657,1734706247208,-572.65082938,0.00023643,2]
[346104659,1734706247218,-150.708,0.00023679,2]
[346104661,1734706247227,-2167.0,0.00023679,2]
[346104662,1734706247237,-533.0,0.00023679,2]
[346104665,1734706247247,-2374.0,0.00023679,2]
[346104667,1734706247256,-34470.0,0.00023679,2]
[346104669,1734706247266,-420.0,0.00023715,2]
[346104671,1734706247276,-160.0,0.00023723,3]
[346104673,1734706247288,-500.0,0.00023835,6]
[346104675,1734706247298,-500.0,0.00023835,6]
[346104677,1734706247307,-500.0,0.00023835,6]
[346104679,1734706247317,-652.78,0.00023835,6]
[346104681,1734706247327,-500.0,0.00023835,6]
[346104683,1734706247337,-500.0,0.00023835,6]
[346104685,1734706247347,-562.09163098,0.00023835,6]
[346104687,1734706247357,-500.0,0.00023835,6]
[346104690,1734706247367,-405.85455833,0.00023835,6]
[346104692,1734706247376,-1089.39,0.00023835,6]
[346104693,1734706247387,-1535.49,0.00023835,6]
[346104695,1734706247396,-1710.39,0.00023835,6]
[346104697,1734706247405,-1257.81,0.00023835,6]
[346104699,1734706247415,-500.0,0.00023835,6]
[346104701,1734706247425,-500.0,0.00023835,6]
[346104703,1734706247434,-500.0,0.00023835,2]
[346104705,1734706247444,-500.0,0.00023835,6]
[346104707,1734706247453,-1309.3,0.00023835,6]
[346104709,1734706247463,-500.0,0.00023835,6]
[346104712,1734706247473,-500.0,0.00023835,6]
[346104714,1734706247483,-847.08,0.00023835,6]
[346104716,1734706247493,-6237.22,0.00023835,6]
[346104718,1734706247502,-603.86,0.00023835,6]
[346104720,1734706247512,-503.51,0.00023835,6]
[346104722,1734706247521,-500.0,0.00023835,6]
[346104724,1734706247531,-642.43,0.00023835,6]
[346104725,1734706247540,-500.0,0.00023835,6]
[346104727,1734706247550,-500.0,0.00023835,6]
[346104729,1734706247560,-280.91319224,0.00023837,2]
[346104732,1734706247569,-1500.0,0.00023975,2]
[346104734,1734706247579,-404.372442,0.00024,2]
[346104736,1734706247589,-4000.0,0.00024,2]
[346104738,1734706247598,-3000.0,0.00024,2]
[346104740,1734706247608,-420.0,0.00024002,2]
[346104742,1734706247617,-500.0,0.00024109,6]
[346104744,1734706247627,-500.0,0.00024109,6]
[346104746,1734706247637,-500.0,0.00024109,6]
[346104748,1734706247647,-652.78,0.00024109,6]
[346104750,1734706247658,-544.79659963,0.00024109,6]
[346104752,1734706247668,-332.88,0.00024109,6]
[346104754,1734706247677,-155.90442955,0.00024109,6]
[346104756,1734706247686,-1089.39,0.00024109,6]
[346104758,1734706247696,-1535.49,0.00024109,6]
[346104760,1734706247706,-1710.39,0.00024109,6]
[346104762,1734706247716,-1257.81,0.00024109,6]
[346104764,1734706247725,-500.0,0.00024109,6]
[346104766,1734706247736,-500.0,0.00024109,6]
[346104768,1734706247746,-500.0,0.00024109,2]
[346104770,1734706247755,-500.0,0.00024109,6]
[346104771,1734706247765,-1309.3,0.00024109,6]
[346104773,1734706247774,-500.0,0.00024109,6]
[346104776,1734706247788,-500.0,0.00024109,6]
[346104778,1734706247798,-847.08,0.00024109,6]
[346104780,1734706247807,-6237.22,0.00024109,6]
[346104782,1734706247818,-603.86,0.00024109,6]
[346104784,1734706247827,-503.51,0.00024109,6]
[346104785,1734706247837,-500.0,0.00024109,6]
[346104788,1734706247848,-642.43,0.00024109,6]
[346104789,1734706247858,-500.0,0.00024109,6]
[346104792,1734706247867,-500.0,0.00024109,6]
[346104793,1734706247876,-572.65082938,0.00024145,2]
[346104796,1734706247886,-280.91319224,0.00024242,2]
[346104798,1734706247896,-500.0,0.00024383,6]
[346104800,1734706247905,-500.0,0.00024383,6]
[346104801,1734706247914,-500.0,0.00024383,6]
[346104803,1734706247923,-652.78,0.00024383,6]
[346104806,1734706247933,-1089.39,0.00024383,6]
[346104807,1734706247943,-1535.49,0.00024383,6]
[346104809,1734706247952,-1710.39,0.00024383,6]
[346104812,1734706247962,-1257.81,0.00024383,6]
[346104814,1734706247971,-500.0,0.00024383,6]
[346104816,1734706247981,-500.0,0.00024383,6]
[346104818,1734706247990,-500.0,0.00024383,2]
[346104820,1734706248000,-500.0,0.00024383,6]
[346104822,1734706248010,-1309.3,0.00024383,6]
[346104824,1734706248019,-500.0,0.00024383,6]
[346104826,1734706248032,-500.0,0.00024383,6]
[346104828,1734706248041,-847.08,0.00024383,6]
[346104830,1734706248052,-6237.22,0.00024383,6]
[346104832,1734706248061,-603.86,0.00024383,6]
[346104834,1734706248071,-503.51,0.00024383,6]
[346104836,1734706248081,-500.0,0.00024383,6]
[346104838,1734706248091,-642.43,0.00024383,6]
[346104840,1734706248101,-500.0,0.00024383,6]
[346104842,1734706248110,-500.0,0.00024383,6]
[346104844,1734706248120,-504.47709868,0.00024473,2]
[346104846,1734706248130,-501.26920096,0.00024473,2]
[346104848,1734706248140,-500.0,0.00024473,2]
[346104850,1734706248150,-25000.0,0.000245,2]
[346104852,1734706248160,-5000.0,0.000245,2]
[346104854,1734706248170,-2641.26505952,0.000245,2]
[346104857,1734706248189,-367.42186335,0.000245,2]
[346107474,1734706275358,1500.0,0.00025,120]
[346107534,1734706275950,164.990374,0.00025,30]
[346107979,1734706319877,639.0,0.00025,120]
[346107980,1734706336087,100000.0,0.00025,30]
[346107981,1734706376804,97292.28481633,0.00025,30]
[346107983,1734706443047,400.0,0.00013973,2]
[346107985,1734706612582,3478.64357337,0.00015,2]
[346107988,1734707146115,-2495.07204462,0.00020243,2]
[346107989,1734707146139,-400.0,0.00020447,2]
[346107990,1734707146161,-178.9893799,0.00020682,2]
[346107991,1734707146185,-124.30006143,0.00020959,2]
[346107992,1734707149094,-175.69993857,0.00020959,2]
[346107993,1734707149117,-300.0,0.00020959,2]
[346107994,1734707149141,-539.59142068,0.0002096,2]
[346107995,1734707234131,-300.0,0.00020959,2]
[346107996,1734707234153,-300.0,0.00020959,2]
[346107997,1734707234175,-2868.43923175,0.0002096,2]
[346107998,1734707237135,-460.69461692,0.0002096,2]
[346107999,1734707252106,-1457.57364133,0.0002096,2]
[346108000,1734707253094,-3604.65136469,0.0002096,2]
[346108001,1734707351124,-609.96715448,0.0002096,2]
[346108040,1734707432302,-999.7066692,0.00020916,2]
[346108041,1734707432314,-2558.43839366,0.00020916,2]
[346108042,1734707432396,-3667.06309024,0.00020916,2]
[346108043,1734707432406,-970.11194,0.000218,2]
[346108044,1734707432415,-300.0,0.00021816,2]
[346108045,1734707432425,-300.0,0.00021816,2]
[346108046,1734707432434,-153.477,0.00021817,2]
[346108047,1734707432444,-259.44964009,0.00021817,2]
[346108048,1734707432453,-280.91319224,0.00021817,2]
[346108049,1734707432463,-501.82153645,0.00021917,6]
[346108050,1734707432472,-500.0,0.00021917,6]
[346108051,1734707432481,-314.13579962,0.00021917,6]
[346108052,1734707432491,-522.23,0.00021917,6]
[346108053,1734707432500,-500.0,0.00021917,6]
[346108054,1734707432510,-558.46469678,0.00021917,6]
[346108055,1734707432519,-159.11,0.00021917,6]
[346108056,1734707432531,-500.0,0.00021917,6]
[346108057,1734707432543,-644.92,0.00021917,6]
[346108058,1734707432553,-500.0,0.00021917,6]
[346108059,1734707432562,-500.0,0.00021917,6]
[346108060,1734707432571,-500.0,0.00021917,6]
[346108061,1734707432580,-500.0,0.00021917,6]
[346108062,1734707432590,-500.0,0.00021917,6]
[346108063,1734707432599,-500.0,0.00021917,6]
[346108064,1734707432608,-444.94761539,0.00021917,6]
[346108065,1734707432619,-500.0,0.00021917,6]
[346108066,1734707432628,-500.0,0.00021917,6]
[346108067,1734707432638,-500.0,0.00021917,6]
[346108068,1734707432647,-500.0,0.00021917,6]
[346108069,1734707432657,-500.0,0.00021917,6]
[346108070,1734707432666,-500.0,0.00021917,6]
[346108071,1734707432675,-464.30781795,0.00021917,6]
[346108072,1734707432685,-500.0,0.00021917,6]
[346108073,1734707432695,-500.0,0.00021917,6]
[346108074,1734707432705,-500.0,0.00021917,6]
[346108075,1734707432715,-500.0,0.00021917,6]
[346108076,1734707432725,-500.0,0.00021917,6]
[346108077,1734707432735,-500.0,0.00021917,6]
[346108078,1734707432744,-349.82924266,0.00021917,6]
[346108107,1734707438304,-150.17075734,0.00021917,6]
[346108109,1734707438314,-500.0,0.00021917,6]
[346108111,1734707438323,-500.0,0.00021917,6]
[346108113,1734707438333,-500.0,0.00021917,6]
[346108115,1734707438342,-167.75312013,0.00021917,6]
[346108123,1734707438406,-332.24687987,0.00021917,6]
[346108125,1734707438416,-500.0,0.00021917,6]
[346108127,1734707438426,-500.0,0.00021917,6]
[346108129,1734707438436,-500.0,0.00021917,6]
[346108131,1734707438446,-500.0,0.00021917,6]
[346108133,1734707438455,-500.0,0.00021917,6]
[346108135,1734707438465,-500.0,0.00021917,6]
[346108137,1734707438474,-500.0,0.00021917,6]
[346108138,1734707438484,-500.0,0.00021917,6]
[346108140,1734707438494,-500.0,0.00021917,6]
[346108143,1734707438504,-500.0,0.00021917,6]
[346108144,1734707438514,-500.0,0.00021917,6]
[346108147,1734707438524,-500.0,0.00021917,6]
[346108149,1734707438535,-500.0,0.00021917,6]
[346108151,1734707438545,-504.12544609,0.00021917,6]
[346108153,1734707438555,-500.0,0.00021917,6]
[346108155,1734707438564,-500.0,0.00021917,6]
[346108157,1734707438574,-500.0,0.00021917,6]
[346108159,1734707438584,-500.0,0.00021917,6]
[346108161,1734707438594,-500.0,0.00021917,6]
[346108163,1734707438604,-500.0,0.00021917,6]
[346108165,1734707438614,-500.0,0.00021917,6]
[346108167,1734707438624,-500.0,0.00021917,6]
[346108169,1734707438634,-500.0,0.00021917,6]
[346108170,1734707438644,-500.0,0.00021917,6]
[346108173,1734707438654,-500.0,0.00021917,6]
[346108174,1734707438664,-500.0,0.00021917,6]
[346108177,1734707438674,-1352.36,0.00021917,6]
[346108178,1734707438684,-500.0,0.00021917,6]
[346108181,1734707438695,-955.92,0.00021917,6]
[346108182,1734707438704,-500.0,0.00021917,6]
[346108184,1734707438714,-500.0,0.00021917,6]
[346108186,1734707438724,-500.0,0.00021917,6]
[346108188,1734707438734,-564.57,0.00021917,6]
[346108190,1734707438744,-500.0,0.00021917,6]
[346108192,1734707438756,-500.0,0.00021917,6]
[346108194,1734707438765,-500.0,0.00021917,6]
[346108196,1734707438776,-500.0,0.00021917,6]
[346108198,1734707438789,-500.0,0.00021917,2]
[346108200,1734707438799,-500.0,0.00021917,6]
[346108202,1734707438808,-500.0,0.00021917,6]
[346108204,1734707438818,-500.0,0.00021917,6]
[346108206,1734707438827,-1517.92,0.00021917,6]
[346108208,1734707438837,-500.0,0.00021917,6]
[346108210,1734707438847,-500.0,0.00021917,6]
[346108212,1734707438856,-500.0,0.00021917,6]
[346108214,1734707438866,-500.0,0.00021917,6]
[346108216,1734707438876,-500.0,0.00021917,6]
[346108218,1734707438885,-500.0,0.00021917,6]
[346108220,1734707438895,-500.0,0.00021917,6]
[346108222,1734707438905,-1022.7,0.00021917,6]
[346108224,1734707438914,-500.0,0.00021917,6]
[346108226,1734707438924,-500.0,0.00021917,6]
[346108228,1734707438934,-500.0,0.00021917,6]
[346108230,1734707438944,-281.07651053,0.00021917,6]
[346108232,1734707438953,-500.0,0.00021917,6]
[346108234,1734707438963,-406.99506221,0.00021917,6]
[346108236,1734707438972,-604.9,0.00021917,6]
[346108238,1734707438982,-500.0,0.00021917,6]
[346108240,1734707438991,-500.0,0.00021917,6]
[346108242,1734707439000,-500.0,0.00021917,6]
[346108244,1734707439010,-4902.87,0.00021917,6]
[346108247,1734707439023,-522.66609282,0.00021917,6]
[346108249,1734707439035,-500.0,0.00021917,6]
[346108251,1734707439046,-500.0,0.00021917,6]
[346108253,1734707439056,-651.4,0.00021917,6]
[346108255,1734707439068,-500.0,0.00021917,6]
[346108257,1734707439077,-869.18,0.00021917,7]
[346108259,1734707439087,-873.08,0.00021917,6]
[346108261,1734707439098,-500.0,0.00021917,6]
[346108263,1734707439107,-500.0,0.00021917,6]
[346108265,1734707439116,-445.1356865,0.00021917,6]
[346108267,1734707439126,-500.0,0.00021917,6]
[346108269,1734707439136,-500.0,0.00021917,6]
[346108271,1734707439145,-209.00618893,0.00021917,6]
[346108273,1734707439155,-500.0,0.00021917,6]
[346108275,1734707439164,-274.17740633,0.00021917,6]
[346108277,1734707439174,-1715.48,0.00021917,6]
[346108279,1734707439183,-500.0,0.00021917,6]
[346108281,1734707439192,-500.0,0.00021917,6]
[346108283,1734707439202,-500.0,0.00021917,6]
[346108285,1734707439211,-472.01597697,0.00021917,6]
[346108287,1734707439220,-500.0,0.00021917,6]
[346108289,1734707439230,-500.0,0.00021917,6]
[346108291,1734707439240,-500.0,0.00021917,6]
[346108294,1734707439257,-500.0,0.00021917,6]
[346108296,1734707439269,-500.0,0.00021917,6]
[346108298,1734707439282,-500.0,0.00021917,6]
[346108300,1734707439292,-500.0,0.00021917,6]
[346108301,1734707439301,-500.0,0.00021917,6]
[346108304,1734707439311,-500.0,0.00021917,6]
[346108306,1734707439321,-388.34230262,0.00021917,6]
[346108308,1734707439331,-500.0,0.00021917,6]
[346108310,1734707439340,-500.0,0.00021917,6]
[346108312,1734707439350,-500.0,0.00021917,6]
[346108314,1734707439359,-500.0,0.00021917,6]
[346108316,1734707439369,-500.0,0.00021917,2]
[346108318,1734707439379,-460.97256035,0.00021917,6]
[346108320,1734707439389,-500.0,0.00021917,6]
[346108322,1734707439398,-500.0,0.00021917,6]
[346108324,1734707439409,-500.0,0.00021917,6]
[346108326,1734707439418,-500.0,0.00021917,6]
[346108328,1734707439428,-500.0,0.00021917,6]
[346108330,1734707439438,-500.0,0.00021917,6]
[346108333,1734707439448,-389.0,0.00022,9]
[346108336,1734707439458,-500.0,0.0002219,2]
[346108338,1734707439468,-443.74514683,0.0002219,2]
[346108340,1734707439479,-500.0,0.0002219,2]
[346108342,1734707439489,-500.0,0.0002219,2]
[346108344,1734707439499,-500.0,0.0002219,2]
[346108346,1734707439509,-500.0,0.0002219,2]
[346108348,1734707439519,-500.0,0.0002219,2]
[346108350,1734707439530,-500.0,0.0002219,2]
[346108352,1734707439540,-500.0,0.0002219,2]
[346108354,1734707439550,-291.23858845,0.0002219,2]
[346108356,1734707439560,-245.11191009,0.0002219,2]
[346108358,1734707439570,-1590.85,0.0002219,2]
[346108361,1734707439580,-271.65202441,0.00022191,6]
[346108363,1734707439591,-500.0,0.00022191,6]
[346108365,1734707439601,-500.0,0.00022191,6]
[346108367,1734707439611,-500.0,0.00022191,6]
[346108369,1734707439621,-500.0,0.00022191,6]
[346108372,1734707439631,-372.14,0.00022191,6]
[346108374,1734707439642,-522.05,0.00022191,6]
[346108376,1734707439652,-500.0,0.00022191,6]
[346108378,1734707439662,-302.64655965,0.00022191,6]
[346108380,1734707439672,-500.0,0.00022191,6]
[346108382,1734707439682,-156.34835999,0.00022191,6]
[346108384,1734707439692,-500.0,0.00022191,6]
[346108386,1734707439702,-309.28528938,0.00022191,6]
[346108389,1734707439715,-500.0,0.00022191,6]
[346108392,1734707439725,-598.50027033,0.00022191,6]
[346108394,1734707439736,-183.13,0.00022191,6]
[346108396,1734707439746,-500.0,0.00022191,6]
[346108397,1734707439755,-500.0,0.00022191,6]
[346108399,1734707439765,-522.89,0.00022191,6]
[346108400,1734707439774,-500.0,0.00022191,6]
[346108401,1734707439786,-500.0,0.00022191,6]
[346108402,1734707439796,-500.0,0.00022191,6]
[346108403,1734707439805,-1352.36,0.00022191,6]
[346108404,1734707439815,-955.92,0.00022191,6]
[346108405,1734707439824,-545.23,0.00022191,6]
[346108406,1734707439834,-500.0,0.00022191,6]
[346108407,1734707439843,-500.0,0.00022191,6]
[346108408,1734707439853,-565.45,0.00022191,6]
[346108409,1734707439862,-500.0,0.00022191,2]
[346108410,1734707439872,-500.0,0.00022191,6]
[346108411,1734707439881,-500.0,0.00022191,6]
[346108412,1734707439891,-1517.92,0.00022191,6]
[346108413,1734707439900,-500.0,0.00022191,6]
[346108414,1734707439910,-500.0,0.00022191,6]
[346108415,1734707439919,-1022.7,0.00022191,6]
[346108416,1734707439928,-500.0,0.00022191,6]
[346108417,1734707439938,-159.67,0.00022191,6]
[346108418,1734707439949,-500.0,0.00022191,6]
[346108419,1734707439959,-4902.87,0.00022191,6]
[346108420,1734707439968,-651.4,0.00022191,6]
[346108421,1734707439978,-873.08,0.00022191,6]
[346108422,1734707439987,-500.0,0.00022191,6]
[346108423,1734707439996,-500.0,0.00022191,6]
[346108424,1734707440005,-500.0,0.00022191,6]
[346108425,1734707440016,-208.11013224,0.00022191,6]
[346108450,1734707440275,-716.83017252,0.00022191,6]
[346108778,1734707443344,-790.53969524,0.00022191,6]
[346108780,1734707443354,-500.0,0.00022191,6]
[346108782,1734707443364,-431.94868312,0.00022191,6]
[346108784,1734707443375,-68.05131688,0.00022191,6]
[346108786,1734707443385,-500.0,0.00022191,6]
[346108788,1734707443395,-395.51491231,0.00022191,6]
[346108790,1734707443404,-500.0,0.00022191,6]
[346108792,1734707443413,-190.98827819,0.00022191,6]
[346108794,1734707443425,-309.01172181,0.00022191,6]
[346108797,1734707443434,-469.95133488,0.00022191,6]
[346109081,1734707446190,-51.18829077,0.00021917,6]
[346109092,1734707446276,-601.899965,0.00021917,6]
[346109197,1734707447398,-586.57174423,0.00021917,6]
[346109199,1734707447408,-500.0,0.00021917,6]
[346109201,1734707447417,-500.0,0.00021917,6]
[346109203,1734707447427,-162.0,0.00022,2]
[346109205,1734707447437,-30.04866512,0.00022191,6]
[346109207,1734707447446,-604.91272981,0.00022191,6]
[346109209,1734707447455,-500.0,0.00022191,6]
[346109211,1734707447465,-500.0,0.00022191,6]
[346109213,1734707447474,-500.0,0.00022191,6]
[346109215,1734707447483,-500.0,0.00022191,6]
[346109217,1734707447492,-500.0,0.00022191,6]
[346109219,1734707447502,-1239.66,0.00022191,6]
[346109221,1734707447511,-598.99,0.00022191,6]
[346109223,1734707447521,-500.0,0.00022191,6]
[346109225,1734707447531,-162.0,0.00022192,2]
[346109227,1734707447542,-581.36442754,0.00022267,2]
[346109229,1734707447552,-500.0,0.00022305,2]
[346109231,1734707447561,-261.14020124,0.0002237,2]
[346109233,1734707447570,-500.7925986,0.0002237,2]
[346109235,1734707447580,-573.35836591,0.00022404,2]
[346109237,1734707447590,-500.0,0.00022414,2]
[346109239,1734707447600,-511.02711415,0.00022414,2]
[346109241,1734707447610,-500.0,0.00022414,2]
[346109243,1734707447619,-500.0,0.00022418,2]
[346109245,1734707447629,-500.0,0.00022444,2]
[346109247,1734707447638,-500.0,0.00022455,2]
[346109249,1734707447647,-500.0,0.00022465,6]
[346109251,1734707447657,-500.0,0.00022465,6]
[346109253,1734707447667,-151.93792222,0.00022465,6]
[346109255,1734707447676,-197.16624068,0.00022465,6]
[346109257,1734707447686,-500.0,0.00022465,6]
[346109259,1734707447696,-955.92,0.00022465,6]
[346109261,1734707447705,-500.0,0.00022465,2]
[346109263,1734707447714,-500.0,0.00022465,6]
[346109265,1734707447723,-500.0,0.00022465,6]
[346109267,1734707447733,-1517.92,0.00022465,6]
[346109269,1734707447742,-500.0,0.00022465,6]
[346109271,1734707447751,-1022.7,0.00022465,6]
[346109273,1734707447760,-254.50467289,0.00022465,6]
[346110952,1734707498540,3568.458,0.00025,60]
[346110954,1734707927743,718.5,0.00025,120]
[346110956,1734708049563,400.0,0.00013973,2]
[346110957,1734708340136,-774.10796654,0.00020243,2]
[346110958,1734708355093,-547.04784822,0.00020243,2]
[346110975,1734708427136,-2003.35924578,0.00020041,2]
[346110976,1734708440153,-778.13228942,0.00020041,2]
[346110977,1734708440175,-155.61061619,0.00020243,2]
[346110978,1734708440200,-400.0,0.00020447,2]
[346110979,1734708440222,-810.24463383,0.00020465,2]
[346110980,1734708453779,-198.60593197,0.00020465,2]
[346110981,1734708453807,-300.0,0.00020814,2]
[346110982,1734708453833,-300.0,0.00020814,2]
[346110983,1734708453858,-684.78861129,0.00020815,2]
[346110996,1734708606743,164.606948,0.0002411,80]
[346110997,1734708607095,164.606948,0.0002411,119]
[346111063,1734708637669,-392.7676553,0.00020606,2]
[346111064,1734708637681,-252.71149767,0.00020606,2]
[346111065,1734708637691,-300.0,0.00020814,2]
[346111066,1734708637700,-300.0,0.00020814,2]
[346111067,1734708637710,-11139.23585101,0.00020815,2]
[346111068,1734708637719,-161.859537,0.00020938,2]
[346111069,1734708637729,-161.859537,0.00021042,2]
[346111070,1734708637739,-323.7633838,0.00021266,2]
[346111071,1734708637748,-595.80229926,0.00021817,2]
[346111072,1734708637758,-359.1394567,0.00021817,2]
[346111073,1734708637767,-2549.1224019,0.00021915,2]
[346111074,1734708637777,-157.76740721,0.00021916,2]
[346111075,1734708637787,-500.0,0.00021916,2]
[346111076,1734708637796,-500.0,0.00021916,2]
[346111077,1734708637811,-500.0,0.00021916,2]
[346111078,1734708637820,-500.0,0.00021916,2]
[346111079,1734708637830,-500.0,0.00021916,2]
[346111080,1734708637839,-500.0,0.00021916,2]
[346111081,1734708637849,-500.0,0.00021916,2]
[346111082,1734708637858,-500.0,0.00021916,2]
[346111083,1734708637868,-500.0,0.00021916,2]
[346111084,1734708637877,-500.0,0.00021916,2]
[346111086,1734708637887,-500.0,0.00021916,2]
[346111088,1734708637898,-153.477,0.00021916,2]
[346111090,1734708637907,-14667.87511377,0.00021917,2]
[346111135,1734708638504,-7284.90616546,0.00021917,2]
[346111137,1734708638517,-1145.37597596,0.00021917,2]
[346111140,1734708638530,-13871.57218975,0.00021917,2]
[346111146,1734708638576,-13914.46227803,0.00021917,2]
[346111168,1734708638779,-928.3289022,0.00021917,2]
[346111391,1734708640816,-254.58206538,0.00021916,2]
[346111393,1734708640826,-249.4568789,0.00021916,2]
[346111395,1734708640836,-9796.9193579,0.00021917,2]
[346111716,1734708643659,-7308.05644905,0.00021917,2]
[346111718,1734708643671,-966.33,0.00021917,2]
[346111964,1734708646589,-500.0,0.00021916,2]
[346111966,1734708646598,-500.0,0.00021916,2]
[346111968,1734708646608,-158.04744954,0.00021916,2]
[346111970,1734708646618,-500.0,0.00021916,2]
[346111972,1734708646627,-4536.95255046,0.00021917,2]
[346113020,1734708968387,390.970969,0.00013973,2]
[346113026,1734709531147,-1709.03031991,0.00019379,2]
[346113027,1734709538086,-2309.81663466,0.00019379,2]
[346113028,1734709626090,-505.79981788,0.00019379,2]
[346113029,1734709633139,-475.35322755,0.00019379,2]
[346113030,1734709633161,-491.76654829,0.00019661,2]
[346113031,1734709633183,-2066.8598683,0.00019675,2]
[346113032,1734709633203,-491.76654829,0.00019691,2]
[346113033,1734709633225,-300.0,0.00019698,2]
[346113034,1734709633247,-6247.84907941,0.00019699,2]
[346113035,1734709643095,-5000.0,0.00019502,2]
[346113036,1734709643118,-3752.0693763,0.00019699,2]
[346113037,1734709643141,-491.76654829,0.00019721,2]
[346113038,1734709643163,-195.04,0.0001976,2]
[346113039,1734709643185,-4808.58997672,0.0001977,2]